Cogmind - Beta 13 @@@ ROGUE MODE // 2024.04.18 @ 21:44:42 Player: Skysub Result: Self-destructed Performance ------------- Evolutions (2) 1000 Regions Visited (5) 1000 Robots Destroyed (20) 100 Value Destroyed (541) 541 Prototype IDs (23) 460 Alien Tech Used (0) 0 Bonus (424) 424 TOTAL SCORE: 3525 Bonus ------- Follower Combat Kills 134 Aligned with FarCom 300 Friendly Fire -10 Cogmind --------- Core Integrity 230/550 Matter 300/300 Energy 100/100 System Corruption 0% Temperature Cool (9) Movement Core (200) Ox3 Location -8/Materials Parts ------- > --- POWER (1) -------- (None) > --- PROPULSION (3) --- (None) > --- UTILITY (5) ------ Small Storage Unit Lightpack 2.0 > --- WEAPON (2) ------- (None) > --- INVENTORY (40) --- Light Ion Engine Aluminum Leg Carbon-fiber Leg Flight Unit Flight Unit Signal Interpreter Reaction Control System Mining Laser Peak State ------------ > --- POWER ------------ Light Nuclear Core > --- PROPULSION ------- Wheel Compact Wheel > --- UTILITY ---------- Small Storage Unit Lightpack 2.0 Tractor Beam > --- WEAPON ----------- Heavy Assault Rifle Ripper > --- INVENTORY -------- Light Ion Engine Aluminum Leg Flight Unit Flight Unit Signal Interpreter Light Assault Rifle Mining Laser [Rating: 43] Favorites ----------- Power Light Ion Engine Engine Light Ion Engine Power Core Light Nuclear Core Propulsion Compact Wheel Leg Aluminum Leg Wheel Compact Wheel Flight Unit Flight Unit Utility Small Storage Unit Device Tractor Beam Storage Small Storage Unit Weapon Light Assault Rifle Energy Gun Medium Laser Ballistic Gun Light Assault Rifle Slashing Weapon Ripper Build | -11 -10 -10 -10 -9 -8 ------- Run | Yrd Mat Min Exi Min Mat Slots Evolved 4 | . . . . . 4 Power . | . . . . . . Propulsion 1 | . . . . . 1 Utility 3 | . . . . . 3 Weapon . | . . . . . . Parts Attached 30 | 7 . 18 1 . 4 Power 5 | 1 . 3 . . 1 Engine 3 | 1 . 2 . . . Core 2 | . . 1 . . 1 Reactor . | . . . . . . Propulsion 10 | 3 . 7 . . . Treads . | . . . . . . Leg 4 | 2 . 2 . . . Wheel 4 | 1 . 3 . . . Hover . | . . . . . . Flight 2 | . . 2 . . . Utility 6 | 1 . 3 1 . 1 Device 3 | . . 2 1 . . Storage 3 | 1 . 1 . . 1 Processor . | . . . . . . Hackware . | . . . . . . Protection . | . . . . . . Artifact . | . . . . . . Weapon 9 | 2 . 5 . . 2 Energy Gun 2 | 1 . 1 . . . Energy Cannon . | . . . . . . Ballistic Gun 5 | 1 . 2 . . 2 Ballistic Cannon . | . . . . . . Launcher . | . . . . . . Special Weapon . | . . . . . . Impact Weapon . | . . . . . . Slashing Weapon 2 | . . 2 . . . Piercing Weapon . | . . . . . . Special Melee Weapon . | . . . . . . Unidentified Prototypes 1 | . . . 1 . . Parts Lost 15 | . . 9 . . 6 Power 3 | . . 2 . . 1 Propulsion 5 | . . 3 . . 2 Utility 2 | . . 1 . . 1 Weapon 5 | . . 3 . . 2 Highest Loss Streak 6 | . . 3 . . 6 To Critical Strikes 1 | . . 1 . . . Average Slot Usage (%) 85 | . 85 83 94 100 64 Engine 11 | . 14 11 14 14 2 Core 1 | . . 2 . . 4 Leg 5 | . 28 8 . . . Wheel 16 | . . 9 28 28 14 Flight 1 | . . 4 . . . Device 8 | . . 8 8 14 7 Storage 14 | . 14 14 14 14 18 Energy Gun 5 | . 14 10 . . . Ballistic Gun 10 | . 14 5 14 14 13 Slashing Weapon 8 | . . 6 14 14 3 Naked Turns . | . . . . . . Heaviest Build 20 | 13 13 15 13 13 20 Greatest Support 26 | 20 20 26 26 26 26 Greatest Overweight (x) 4 | 3 . 4 . . 3 Average Overweight (x) . | . . . . . . Largest Inventory Capacity 40 | 8 8 8 8 8 40 Average Capacity 12 | 7 8 8 8 8 40 Most Carried 8 | 1 4 8 8 8 8 Average Carried 6 | . 2 5 7 8 6 Final Capacity 40 | 8 8 8 8 8 40 Final Carried 8 | 1 4 8 8 8 8 Class Distribution -------------------- 53% | Scavenger-Mutant 32% | Mutant 14% | Hauler-Mutant Dominant Class ---------------- Mutant | -10/Materials Mutant | -10/Mines Scavenger-Mutant | -10/Exiles Scavenger-Mutant | -9/Mines Hauler-Mutant | -8/Materials Resources | -11 -10 -10 -10 -9 -8 ----------- Run | Yrd Mat Min Exi Min Mat Matter Collected 599 | 178 44 215 . 55 107 Remotely 154 | . . . . 55 99 Salvage Created 761 | . 240 311 . 17 193 Parts 37 | . 13 15 . 2 7 Haulers Intercepted . | . . . . . . Recyclers Shooed . | . . . . . . Parts Field Recycled . | . . . . . . Retrieved Matter . | . . . . . . Parts Self-Destructed . | . . . . . . Prevented . | . . . . . . Kills | -11 -10 -10 -10 -9 -8 ------- Run | Yrd Mat Min Exi Min Mat Combat Hostiles Destroyed 12 | . 3 7 . . 2 Melee 2 | . . 2 . . . Guns 9 | . 2 5 . . 2 AOE 1 | . 1 . . . . Classes Destroyed 8 | . 4 2 . 1 1 Builder 1 | . . 1 . . . Tunneler 1 | . . . . 1 . Recycler 4 | . 2 1 . . 1 Mechanic 1 | . 1 . . . . Watcher 1 | . 1 . . . . Swarmer 3 | . . 3 . . . Grunt 8 | . 3 4 . . 1 Specialist 1 | . . . . . 1 Best Kill Streak 7 | . 7 3 . 1 2 Combat Bots Only 3 | . 3 3 . . 1 Max Kills in Single Turn 3 | . 3 1 . 1 1 Gunslinging . | . . . . . . Exploded 1 | . 1 . . . . Melee 1 | . . 1 . . . Uniques/NPCs Destroyed . | . . . . . . Combat | -11 -10 -10 -10 -9 -8 -------- Run | Yrd Mat Min Exi Min Mat Hostile Shots Fired 170 | . 27 71 . . 72 Missed 37 | . 9 12 . . 16 Damage Taken 1747 | . 194 764 . . 789 Core 525 | . 65 140 . . 320 Absorbed by Shields . | . . . . . . Core Remaining (%) 59 | 100 . . . 18 . Volleys Fired 66 | . 9 23 . . 34 Largest 2 | . 2 2 . . 2 Hottest 90 | . 70 90 . . 43 Shots Fired 106 | . 18 40 . . 48 Gun 106 | . 18 40 . . 48 Cannon . | . . . . . . Launcher . | . . . . . . Special . | . . . . . . Kinetic 65 | . 9 8 . . 48 Thermal 30 | . 9 21 . . . Explosive . | . . . . . . Electromagnetic 11 | . . 11 . . . Robot Hit Streak 18 | . 4 7 . . 18 Robot Miss Streak 5 | . 2 4 . . 5 Penetration Max . | . . . . . . Secondary Targets 2 | . 1 1 . . . Max Gunslinging Chain 1 | . 1 1 . . . Shots Hit Robots 76 | . 13 29 . 1 33 Core Hits 36 | . 9 12 . . 15 Critical Kills . | . . . . . . Critical Parts Destroyed 1 | . . . . . 1 Critical Strikes 2 | . 1 . . . 1 Burn 1 | . 1 . . . . Destroy 1 | . . . . . 1 Melee Attacks 9 | . . 8 . 1 . Impact . | . . . . . . Slashing 9 | . . 8 . 1 . Piercing . | . . . . . . Sneak Attacks 3 | . . 2 . 1 . Combat Hostiles . | . . . . . . Follow-up Attacks . | . . . . . . Damage Inflicted 2000 | . 973 610 . 88 329 Guns 768 | . 143 296 . . 329 Cannons . | . . . . . . Explosions 886 | . 830 56 . . . Melee 346 | . . 258 . 88 . Ramming . | . . . . . . Kinetic 425 | . 55 41 . . 329 Thermal 1134 | . 918 216 . . . Explosive . | . . . . . . Electromagnetic 95 | . . 95 . . . Impact . | . . . . . . Slashing 346 | . . 258 . 88 . Piercing . | . . . . . . Highest Corruption 3 | . . 3 3 3 . Average Corruption 3 | . . 3 3 3 . Corruption Purged . | . . . . . . Corruption Blocked . | . . . . . . Effects 13 | . . . 8 5 . Message Errors 3 | . . . 1 2 . Matter Fused 4 | . . . 3 1 . Heat Flow Errors 2 | . . . 1 1 . Energy Discharges 2 | . . . 1 1 . Parts Fused 1 | . . . 1 . . Data Loss (minor) 1 | . . . 1 . . Overload Shots . | . . . . . . Overflow Damage 356 | . 221 87 . 48 . Projectiles . | . . . . . . Explosions 221 | . 221 . . . . Melee 135 | . . 87 . 48 . Knockbacks . | . . . . . . Impact . | . . . . . . Kinetic . | . . . . . . Secondary . | . . . . . . Self-Inflicted Damage 40 | . . 40 . . . Shots 1 | . . 1 . . . Rammed . | . . . . . . Targets Rammed . | . . . . . . Kicked . | . . . . . . Crushed . | . . . . . . Highest Temperature 597 | . 142 597 270 97 15 Average Temperature 179 | . 55 268 140 57 7 Received Heat Transfer 702 | . 108 333 . . 261 Effects 11 | . . 11 . . . Shutdowns 2 | . . 2 . . . Energy Bleed 2 | . . 2 . . . Interference 1 | . . 1 . . . Short Circuit 1 | . . 1 . . . Damage (minor) 4 | . . 4 . . . Damage (core) 1 | . . 1 . . . Siege Activations . | . . . . . . Robots Corrupted . | . . . . . . Combat Hostiles . | . . . . . . Parts Fried . | . . . . . . Impact Corruptions . | . . . . . . Robots Melted . | . . . . . . Combat Hostiles . | . . . . . . Parts Melted 1 | . . 1 . . . Heat Transferred 1414 | . 883 531 . . . Parts Sabotaged . | . . . . . . Parts Stolen . | . . . . . . Parts Stripped . | . . . . . . Power Chain Reactions 1 | . . 1 . . . Alert | -11 -10 -10 -10 -9 -8 ------- Run | Yrd Mat Min Exi Min Mat Peak Influence 261 | . 261 226 . 5 194 Initial 101 | . . 101 . . 1 Average 90 | . 79 120 . 3 112 Maximum Alert Level 1 | . 1 1 . . . Low Security (%) 88 | 100 84 80 . 100 100 Level 1 11 | . 15 19 . . . Level 2 . | . . . . . . Level 3 . | . . . . . . Level 4 . | . . . . . . Level 5 . | . . . . . . High Security . | . . . . . . Max Security . | . . . . . . Squads Dispatched 2 | . 1 . . . 1 Investigation 1 | . 1 . . . . Extermination . | . . . . . . Reinforcement 1 | . . . . . 1 Assault . | . . . . . . Garrison . | . . . . . . Intercept . | . . . . . . Searches Triggered . | . . . . . . Construction Impeded . | . . . . . . Haulers Reinforced . | . . . . . . Active Scanning Responses . | . . . . . . Cargo Convoy Interrupts . | . . . . . . Stealth | -11 -10 -10 -10 -9 -8 --------- Run | Yrd Mat Min Exi Min Mat Distress Signals 7 | . 3 . . . 4 Communications Jammed . | . . . . . . Distress Signals . | . . . . . . Times Spotted 31 | . 9 12 . . 10 Peak Tracking Total 6 | . 6 3 . . 6 Tactical Retreats 5 | . . 5 . . . Traps | -11 -10 -10 -10 -9 -8 ------- Run | Yrd Mat Min Exi Min Mat Traps Triggered . | . . . . . . Indirectly . | . . . . . . Trap Hack Attempts . | . . . . . . Triggered . | . . . . . . Disarmed . | . . . . . . Reprogrammed . | . . . . . . Reused . | . . . . . . Traps Extracted . | . . . . . . Installed . | . . . . . . Triggered . | . . . . . . Objects Rigged 2 | . 2 . . . . Exploded 2 | . 2 . . . . Machines | -11 -10 -10 -10 -9 -8 ---------- Run | Yrd Mat Min Exi Min Mat Machines Disabled 6 | . 6 . . . . Max in Single Turn 4 | . 4 . . . . Machines Repaired . | . . . . . . Machines Dismantled . | . . . . . . Machines Sabotaged . | . . . . . . Overloaded Fab Kills . | . . . . . . Hacking | -11 -10 -10 -10 -9 -8 --------- Run | Yrd Mat Min Exi Min Mat Machines Accessed 5 | . 2 . 1 . 2 Terminals 4 | . 2 . . . 2 Fabricators . | . . . . . . Repair Stations . | . . . . . . Recycling Units . | . . . . . . Scanalyzers . | . . . . . . Garrison Access . | . . . . . . Total Hacks 14 | . 6 . 1 . 7 Successful 7 | . 3 . 1 . 3 Failed 7 | . 3 . . . 4 Catastrophic 2 | . . . . . 2 Database Lockouts . | . . . . . . Manual 10 | . 4 . 1 . 5 Terminals 13 | . 6 . . . 7 Fabricators . | . . . . . . Repair Stations . | . . . . . . Recycling Units . | . . . . . . Scanalyzers . | . . . . . . Garrison Access . | . . . . . . Terminal Hacks 5 | . 1 . 1 . 3 Branch Access Points 2 | . 1 . . . 1 Hauler Manifests 1 | . . . . . 1 Registered Components 1 | . . . . . 1 Derelict Proto ID Bank 1 | . . . 1 . . Fabricator Hacks . | . . . . . . Repair Station Hacks . | . . . . . . Recycling Unit Hacks . | . . . . . . Scanalyzer . | . . . . . . Garrison Access Hacks . | . . . . . . Unauthorized Hacks 2 | . 2 . . . . Terminals 2 | . 2 . . . . Detonate 1 | . 1 . . . . Sabotage 1 | . 1 . . . . Fabricators . | . . . . . . Repair Stations . | . . . . . . Recycling Units . | . . . . . . Scanalyzers . | . . . . . . Garrison Access . | . . . . . . Data Cores Recovered . | . . . . . . Used . | . . . . . . Hacking Detections 4 | . 2 . . . 2 Full Trace Events . | . . . . . . Feedback Events . | . . . . . . Feedback Blocked . | . . . . . . Robot Schematics Acquired . | . . . . . . Robots Built . | . . . . . . Authchips . | . . . . . . Time . | . . . . . . Total Robot Build Rating . | . . . . . . Part Schematics Acquired . | . . . . . . Parts Built . | . . . . . . Authchips . | . . . . . . Time . | . . . . . . Total Part Build Rating . | . . . . . . Parts Repaired . | . . . . . . Time . | . . . . . . Parts Recycled . | . . . . . . Recycled Matter . | . . . . . . Retrieved Matter . | . . . . . . Retrieved Components . | . . . . . . Parts Scanalyzed . | . . . . . . Part Schematics Acquired . | . . . . . . Parts Damaged . | . . . . . . Bothacking | -11 -10 -10 -10 -9 -8 ------------ Run | Yrd Mat Min Exi Min Mat Used RIF Installer . | . . . . . . Robots Hacked . | . . . . . . Non-combat . | . . . . . . Combat . | . . . . . . Robot Hacks Applied . | . . . . . . Relay Couplers Released . | . . . . . . Fabnet Peak Effective % . | . . . . . . Robots Rewired . | . . . . . . Allies Hacked . | . . . . . . Hacks Repelled . | . . . . . . Allies | -11 -10 -10 -10 -9 -8 -------- Run | Yrd Mat Min Exi Min Mat Total Allies 3 | . . . . 3 . Largest Group 3 | . . . . 3 3 Highest-Rated Group 40 | . . . . 40 40 Highest-Rated Ally 16 | . . . . 16 16 Total Orders . | . . . . . . Ally Attacks 23 | . . . . . 23 Total Damage 288 | . . . . . 288 Kills 4 | . . . . . 4 Allies Corrupted . | . . . . . . Allies Melted . | . . . . . . Intel | -11 -10 -10 -10 -9 -8 ------- Run | Yrd Mat Min Exi Min Mat Robot Analysis Total . | . . . . . . Derelict Logs Recovered 3 | . . 2 . 1 . Drone Launches . | . . . . . . Drone Recoveries . | . . . . . . Exploration | -11 -10 -10 -10 -9 -8 ------------- Run | Yrd Mat Min Exi Min Mat Turns Passed 1524 | 58 99 619 326 195 227 Spaces Moved 1279 | 41 59 499 359 198 123 Core 22 | 5 . 16 . . 1 Treads . | . . . . . . Legs 180 | 18 59 103 . . . Wheels 923 | 18 . 226 359 198 122 Hover . | . . . . . . Flight 154 | . . 154 . . . Fastest Speed 37 | 50 120 37 90 90 90 Average Speed 94 | 114 120 95 90 90 91 Slowest Speed 290 | 200 120 290 90 90 200 Overloaded Moves . | . . . . . . Propulsion Burnouts . | . . . . . . Robots Hopped 3 | . . 3 . . . Cave-ins Triggered . | . . . . . . Time Travels 1 | . . . 1 . . Exploration Rate (%) 43 | 3 18 79 87 60 15 Regions Visited 5 Branch Regions 3 Pre-discovered Areas 1 | . . 1 . . . Known Exits Taken 2 | . 1 1 . . . Unknown Exits Taken 3 | 1 . . 1 1 . Scrap Searched 3 | . . 1 . 2 . Spaces Dug . | . . . . . . Terrain Destroyed 63 | . 53 10 . . . Melee . | . . . . . . Projectile . | . . . . . . AOE 63 | . 53 10 . . . Terrain Rammed . | . . . . . . Walls Destroyed . | . . . . . . Machines Disabled . | . . . . . . Actions | -11 -10 -10 -10 -9 -8 --------- Run | Yrd Mat Min Exi Min Mat Total 1477 | 49 71 587 362 213 195 Wait 76 | . 1 28 . 15 32 Move 1269 | 40 58 493 358 197 123 Hop 2 | . . 2 . . . Pick Up 15 | 1 3 8 1 . 2 Fast Attach 14 | 6 . 8 . . . Attach 8 | 1 . 5 1 . 1 Detach 4 | 1 . 3 . . . Swap 8 | . . 5 . . 3 Drop 6 | . . 4 2 . . Fire 66 | . 9 23 . . 34 Melee 9 | . . 8 . 1 . Ram . | . . . . . . Kick . | . . . . . . Crush . | . . . . . . Escape Stasis . | . . . . . . Rewire . | . . . . . . Trap . | . . . . . . Miscellaneous . | . . . . . . Route ------- -11/Scrapyard -10/Materials -10/Mines (discovered 3 exits: [*Mat x2] / *Exi) -10/Exiles (discovered 2 exits: [*Min x2]) -9/Mines -8/Materials (discovered 1 exit: Fac) History --------- Turn | Location | Event 9 | -11/Scrapyard | Discovered new exit (range 15) 59 | -11/Scrapyard | Entered Materials 88 | -10/Materials | Discovered new exit (range 11) 105 | -10/Materials | Identified exit to Mines 158 | -10/Materials | Entered Mines 172 | -10/Mines | A weapon hastily lodged in a ceiling crevice suddenly fell to the ground 218 | -10/Mines | Core integrity fell below 50% 435 | -10/Mines | Core integrity fell below 20% 458 | -10/Mines | Lost 3 parts (1p2w) 481 | -10/Mines | Assembled infested the area 486 | -10/Mines | Assisted by a Guerilla fighting off Assembled 534 | -10/Mines | Learned location of Zion (-7) 534 | -10/Mines | Discovered new exit (range 7) 614 | -10/Mines | Identified exit to Exiles 624 | -10/Mines | Joined a pair of Derelicts in attacking an 0b10 outpost 756 | -10/Mines | Discovered new exit (range 12) 773 | -10/Mines | Deemed a non-threat by the Exiles lab entrance 777 | -10/Mines | Entered Exiles 791 | -10/Exiles | Discovered new exit (range 15) 800 | -10/Exiles | Met 8R-AWN 815 | -10/Exiles | Met EX-HEX 840 | -10/Exiles | Met EX-BIN 852 | -10/Exiles | Aligned with FarCom system 853 | -10/Exiles | Given EX-Vault access code 860 | -10/Exiles | Build established: Scavenger-Mutant 874 | -10/Exiles | Opened EX-Vault 879 | -10/Exiles | Found Prototype Device 879 | -10/Exiles | Identified Chronowheel 879 | -10/Exiles | Activated Chronowheel 879 | -10/Exiles | Spacetime reconverged on an earlier point 894 | -10/Exiles | Found Lightpack 2.0 916 | -10/Exiles | Warned to stay clear of 0b10 Research branches 939 | -10/Exiles | Met EX-DEC 971 | -10/Exiles | Visited The Gauntlet 1092 | -10/Exiles | Discovered new exit (range 12) 1103 | -10/Exiles | Left Exiles lab with Lightpack 2.0 1103 | -10/Exiles | Entered Mines 1190 | -9/Mines | Learned location of 1 exit from Materials 1224 | -9/Mines | Discovered new exit (range 8) 1234 | -9/Mines | Assisted by bots powering up and referring to "LRC-V3" 1298 | -9/Mines | Entered Materials 1298 | -8/Materials | Accompanied by 3 allies 1298 | -8/Materials | Evolved 4 slots: Propulsion x1, Utility x3 1299 | -8/Materials | Identified exit to Factory 1497 | -8/Materials | Lost 3 allies 1520 | -8/Materials | Core integrity fell below 50% 1525 | -8/Materials | Self-destructed Last Messages --------------- Penetrated by Slug. R-06 Scavenger collects Sml. Storage Unit. X-62 Marksman destroyed. R-06 Scavenger collects Armor Integrity Analyzer. Acquired 5 matter. R-06 Scavenger collects Imp. Carbon-fiber Leg. Acquired 1 matter. R-06 Scavenger collects Aluminum Leg. Acquired 1 matter. R-06 Scavenger collects Core Analyzer. Terminal disabled. R-06 Scavenger collects Imp. Deuterium Engine. K-01 Serf collects debris. Slug penetrates Wall. R-06 Scavenger collects Aluminum Leg. R-06 Scavenger collects Lgt. Nuclear Core. Critical hit (Burn: +37). Slug penetrates Wall. Lgt. Assault Rifle destroyed. R-06 Scavenger collects Aluminum Leg. Map ----- +----------------------------------------------------+ | ########### #########???????????????? | | ############???????####+#####????????????????????? | | ???????????????????# ##???????????????????? | | ???????????????????# """ =%* #???????????????????? | | ???????????????????# "R" !!##???????????????????? | | ???????????????????# " " #????????????????????? | | ???????????????????# #????????????????????? | | ???????????????????# """#????????????????????? | | ???????????????????# """#????????????????????? | | ???????????????????# """#????????????????????? | | ???????????????????# = #????????????????????? | | ???????????????????########+#????????????????????? | | ??????????????????????????# #????????????????????? | | ??????????????????????????# #????????????????????? | | ??????????????????????????# #????????????????????? | | ???????????????????######## #????????????????????? | | ???????????????????# # #????????????????????? | | ???????????????????#""" # #????????????????????? | | ???????????????????#""" # #????????????????????? | | ???????????????????#""" # #????????????????????? | | ???????????????????# + #????????????????????? | | ???????????????????# #!#????????????????????? | | ???????????????????########!#????????????????????? | | ???????????????????# "" #=#????????????????????? | | ???????????????????# "T" #r#????????????????????? | | ???????????????????# %@gk#????????????????????? | | ?????????????H?????# %%#r#????????????????????? | | ???????????????????# #h#????????????????????? | | ???????????????????# ! #%#????????????????????? | | ???????????????????######## #????????????????????? | | ??????????????????????????# #????????????????????? | | ??????????????????????????# #????????????????????? | | ??????????????????????????# #?????w??????????????? | | ?????????????????????????? ????????????????????? | | ?????????????????????????? ????????????????????? | | ?????????????????????????? ????????????????????? | | ?????????????????????????? ????????????????????? | | ?????????????????????????? ????????????????????? | | ?????????????????????????? ????????????????????? | | ?????????????????????????? ????????????????????? | | ?????????????????????????? ????????????????????? | | ?????????????????????????????????????????????????? | | ?????????????????????????????????????????????????? | | ?????????????????????????????????????????????????? | | ?????????????????????????????????????????????????? | | ?????????????????????????????????????????????????? | | ?????????????????????????????????????????????????? | | ?????????????????????????????????????????????????? | | ?????????????????????????????????????????????????? | | ?????????????????????????????????????????????????? | +----------------------------------------------------+ Best States ------------- Heat Dissipation 35 Energy Generation 14 Energy Capacity 250 Matter Stores 300 Matter Capacity 300 Sight Range 16 Terrain Scan Density 10 Evasion (%) 62 Item Schematics ----------------- None Robot Schematics ------------------ None Fabricated ------------ Nothing Alien Tech Used ----------------- None Achievements -------------- None Challenges ------------ None Game ------ Seed PortableScatterClaws Manual? 0 Play Time 00:21:52 Cumulative 43.2 hours Start 2024.04.18 @ 21:20:33 End 2024.04.18 @ 21:44:42 Sessions 1 Manual Loads 0 Difficulty Rogue Special Mode None Game No. 32 Rogue 32 Adventurer 0 Explorer 0 Win Type - Total 1 Types 1/0/0/0/0/0/0/0/0 Lore% 28 Gallery% 44 Achievement% 33 Wizard Run 0 Options --------- Layout 1 ASCII 0 Keyboard 1 Movement Numpad Keybinds 0 Fullscreen 1 Font 32/SmallcapsGlow Map View 77x35 Zoom Use 0% Tactical HUD 0 Map Filters NONE Filters NONE Steam 1 RUN: 2e3bdab4-5b08-46db-b4d6-fdeaf7f36a4d